bitfinex-derivatives/quotes_ETHF0:USTF0_20210407
["timestamp","ask_amount","ask_price","bid_price","bid_amount"]
[1617811250335,34.1269,1972.9,1968.2,30.0]
[1617811250836,34.1269,1972.9,1968.3,42.8776]
[1617811251136,34.1269,1972.9,1969.7,2.90695]
[1617811251749,34.1269,1972.9,1968.3,14.856]
[1617811252146,34.1269,1972.9,1968.3,44.856]
[1617811252576,34.1269,1972.9,1968.4,8.31]
[1617811253043,2.90695,1969.8,1969.7,2.90695]
[1617811253443,2.90695,1969.8,1968.4,2.0]
[1617811253748,2.90695,1969.8,1968.3,12.8776]
[1617811253939,5.2299,1971.2,1968.4,6.27]
[1617811254244,3.1,1971.2,1968.5,2.0]
[1617811254539,3.1,1971.2,1968.4,6.27]
[1617811254739,6.14,1971.2,1968.6,6.35]
[1617811254942,6.14,1971.2,1968.6,1.8669]
[1617811255140,6.14,1971.2,1969.3,2.90695]
[1617811255655,5.04,1971.2,1969.3,2.90695]
[1617811256442,5.04,1971.2,1968.3,12.8776]
[1617811256640,30.0,1971.1,1968.3,12.8776]
[1617811256940,30.0,1970.9,1968.3,12.8776]
[1617811257142,33.1,1970.9,1968.8,2.90695]
[1617811257840,33.1,1970.9,1968.3,12.8776]
[1617811259141,33.1,1970.9,1968.9,2.90695]
[1617811259641,33.1,1970.9,1968.6,2.69]
[1617811259642,31.1,1970.9,1968.6,2.69]
[1617811259842,1.1,1970.9,1968.6,2.69]
[1617811260241,1.1,1970.9,1969.1,77.792]
[1617811260542,1.0036,1971.0,1969.1,80.4493]
[1617811260742,1.0036,1971.0,1969.2,8.38]
[1617811260943,2.1102,1971.7,1969.2,8.38]
[1617811261142,68.6731,1971.0,1970.6,2.90695]
[1617811261343,68.6731,1971.0,1970.6,2.6333]
[1617811261944,69.6844,1971.0,1970.6,2.6333]
[1617811262343,69.6844,1971.0,1969.1,2.6573]
[1617811262843,69.6844,1971.0,1968.8,13.3835]
[1617811263142,2.90695,1969.2,1968.9,2.90695]
[1617811264144,2.90695,1969.2,1968.3,12.8776]
[1617811264665,2.90695,1969.2,1967.4,13.0169]
[1617811265280,74.9043,1969.0,1968.1,2.90695]
[1617811266349,74.9043,1969.0,1968.1,1.63435]
[1617811266704,74.9043,1969.0,1967.4,13.0169]
[1617811267252,74.9043,1969.0,1966.2,13.3294]
[1617811267596,7.1017,1969.3,1966.2,13.3294]
[1617811267597,7.1017,1969.3,1966.3,13.6294]
[1617811267802,57.0049,1968.0,1966.3,13.6294]
[1617811267953,59.2845,1968.0,1966.3,13.6294]
[1617811268385,59.2845,1968.0,1964.9,2.0]
[1617811268663,59.2845,1968.0,1964.6,27.2135]
[1617811268854,67.5821,1966.8,1964.6,27.2135]
[1617811269055,30.0,1966.7,1964.6,27.2135]
[1617811269255,30.0,1966.7,1965.4,2.90695]
[1617811269853,30.0,1966.7,1963.3,13.7482]
[1617811270652,70.6033,1966.8,1963.3,13.7482]
[1617811270653,30.0,1966.5,1963.3,13.7482]
[1617811271066,30.0,1966.5,1963.3,7.1437]
[1617811271352,30.0,1966.5,1963.2,78.2035]
[1617811271353,2.90695,1964.6,1964.5,2.90695]
[1617811271553,5.40935,1964.6,1964.5,2.13505]
[1617811271757,5.40935,1964.6,1962.4,13.3637]
[1617811272456,6.42185,1964.6,1962.4,13.3637]
[1617811272656,6.42185,1964.6,1962.5,2.0]
[1617811272858,5.40935,1964.6,1962.5,2.0]
[1617811273358,2.5024,1964.6,1964.1,2.90695]
[1617811274058,62.4768,1964.8,1964.1,2.90695]
[1617811274660,1.0189,1964.8,1964.1,2.90695]
[1617811274860,2.1034,1966.4,1964.1,32.90695]
[1617811274861,68.7156,1966.1,1964.1,32.90695]
[1617811275260,68.7156,1966.1,1965.1,2.90695]
[1617811275961,1.0165,1967.6,1965.1,2.90695]
[1617811276160,63.8718,1968.0,1965.2,6.13]
[1617811276361,64.9718,1968.0,1965.2,36.13]
[1617811276560,63.8718,1968.0,1965.2,36.13]
[1617811277162,62.8706,1968.0,1965.2,38.13]
[1617811277466,13.6855,1971.7,1965.2,38.13]
[1617811277467,58.479,1968.9,1967.2,2.90695]
[1617811277661,58.479,1968.9,1967.2,5.55135]
[1617811278991,59.489,1968.9,1967.2,5.55135]
[1617811279364,2.90695,1967.3,1967.2,2.6444]
[1617811279665,2.90695,1967.3,1965.2,32.0]
[1617811280161,2.90695,1967.3,1965.3,6.22]
[1617811280361,3.93695,1967.3,1965.3,6.22]
[1617811280561,3.93695,1967.3,1964.9,2.0]
[1617811280862,33.93695,1967.3,1963.9,30.0]
[1617811281068,68.7305,1966.6,1963.8,2.0]
[1617811281262,71.8393,1966.6,1964.8,2.90695]
[1617811283078,71.8393,1966.6,1964.8,2.73305]
[1617811283273,2.90695,1964.9,1964.8,2.73305]
[1617811283463,5.04495,1964.9,1964.5,13.1333]
[1617811285066,5.04495,1964.9,1964.5,12.742]
[1617811286368,5.04495,1964.9,1963.4,14.223]
[1617811286667,5.04495,1964.9,1961.8,2.0]
[1617811286869,80.0606,1964.6,1961.9,13.9787]
[1617811287066,80.0606,1964.6,1962.0,2.0]
[1617811287267,82.96755,1964.6,1962.9,2.90695]
[1617811287967,83.98685,1964.6,1962.9,2.90695]
[1617811288375,2.90695,1964.6,1962.9,2.90695]
[1617811288875,2.90695,1964.6,1963.0,6.17]
[1617811289081,2.90695,1964.6,1963.0,38.5321]
[1617811289377,3.93885,1964.6,1963.8,2.90695]
[1617811289573,3.93885,1964.6,1963.8,2.78375]
[1617811289774,3.93885,1964.6,1963.8,2.47185]
[1617811289974,3.93885,1964.6,1962.7,30.0]
[1617811290678,3.93885,1964.6,1962.9,30.0]
[1617811291076,3.93885,1964.6,1963.0,6.26]
[1617811291276,2.452,1964.7,1963.6,2.90695]
[1617811291477,1.013,1965.1,1963.6,2.90695]
[1617811291677,1.013,1965.1,1963.7,6.27]
[1617811291979,65.0081,1965.5,1963.6,2.90695]
[1617811292176,2.7752,1965.1,1963.6,2.90695]
[1617811292378,2.7752,1965.1,1963.0,13.5157]
[1617811292677,85.5379,1964.6,1963.0,13.5157]
[1617811292878,89.2128,1964.6,1963.0,13.5157]
[1617811293077,88.1805,1964.6,1963.0,13.5157]
[1617811293378,88.1805,1964.6,1963.1,2.90695]
[1617811293678,88.1805,1964.6,1963.0,13.5157]
[1617811294078,89.1922,1964.6,1963.0,13.5157]
[1617811294279,91.1922,1964.6,1963.0,13.5157]
[1617811294480,90.1805,1964.6,1961.8,30.0]
[1617811294882,88.1805,1964.6,1961.8,30.0]
[1617811295283,88.1805,1964.6,1963.0,2.90695]
[1617811295684,89.1937,1964.6,1963.0,2.90695]
[1617811296290,88.1805,1964.6,1963.0,2.90695]
[1617811296782,85.5379,1964.6,1963.0,2.90695]
[1617811297082,85.5379,1964.6,1963.1,8.29]
[1617811297287,85.5379,1964.6,1962.4,13.0445]
[1617811297583,2.90695,1963.1,1962.4,13.0445]
[1617811297885,2.90695,1963.1,1962.1,2.90695]
[1617811298611,2.90695,1963.1,1960.2,14.1913]
[1617811298612,2.90695,1963.1,1960.8,2.0]
[1617811298791,82.6644,1962.2,1960.8,2.0]
[1617811299000,85.6542,1962.2,1960.1,13.2789]
[1617811299487,85.6542,1962.2,1960.5,2.90695]
[1617811299715,85.6542,1962.2,1960.6,1.0214]
[1617811299897,85.6542,1962.2,1960.6,7.3414]
[1617811300101,85.6542,1962.2,1960.6,6.32]
[1617811300288,84.8328,1962.0,1960.6,6.32]
[1617811300708,84.8328,1962.0,1960.5,2.90695]
[1617811301303,84.8328,1962.0,1960.6,36.39]
[1617811301588,84.8328,1962.0,1961.5,2.90695]
[1617811302390,83.8328,1962.0,1961.6,6.31]
[1617811302791,83.8328,1962.0,1961.5,2.90695]
[1617811302792,83.8328,1962.0,1960.5,32.0]
[1617811302990,85.9293,1962.0,1960.5,30.0]
[1617811303490,85.9293,1962.0,1961.3,2.90695]
[1617811304291,83.8328,1962.0,1961.3,2.90695]
[1617811304492,83.8328,1962.0,1960.5,30.0]
[1617811304893,83.8328,1962.0,1960.4,13.4323]
[1617811305391,83.8328,1962.0,1961.1,2.90695]
[1617811305590,83.8328,1962.0,1960.4,13.4323]
[1617811305798,83.8328,1962.0,1960.5,6.16]
[1617811305992,83.8328,1962.0,1960.5,2.3142]
[1617811306492,83.8328,1962.0,1960.6,30.0]
[1617811306701,83.8328,1962.0,1960.7,6.22]
[1617811306993,1.1,1963.8,1960.8,32.0]
[1617811307194,64.477,1963.2,1960.8,32.0]
[1617811307400,2.90695,1962.4,1962.1,2.90695]
[1617811307593,2.90695,1962.4,1962.1,5.94575]
[1617811307795,2.90695,1962.4,1962.2,6.42]
[1617811307993,2.90695,1962.4,1962.1,5.94575]
[1617811308493,2.90695,1962.4,1962.1,3.0388]
[1617811308993,2.90695,1962.4,1960.6,30.0]
[1617811309201,2.90695,1962.4,1960.8,30.0]
[1617811309495,64.477,1963.2,1961.8,2.90695]
[1617811309711,64.477,1963.2,1961.0,1.9869]
[1617811310007,64.477,1963.2,1959.3,69.8292]
[1617811310009,3.0265,1963.2,1959.3,2.3297]
[1617811310337,3.0265,1963.2,1958.2,1.0157]
[1617811310338,71.1931,1961.9,1958.2,1.0157]
[1617811310527,73.1824,1961.9,1958.8,2.0]
[1617811310808,73.1824,1961.9,1958.8,1.031]
[1617811311396,2.90695,1961.7,1960.1,16.18585]
[1617811312302,2.90695,1961.7,1960.2,6.37]
[1617811312505,2.90695,1961.7,1960.2,9.441]
[1617811312905,2.90695,1961.7,1960.2,39.441]
[1617811313706,79.3487,1963.0,1960.2,39.441]
[1617811313907,79.3487,1963.0,1960.4,30.0]
[1617811314106,79.3487,1963.0,1960.6,30.0]
[1617811314307,79.3487,1963.0,1960.8,30.0]
[1617811314511,79.3487,1963.0,1961.0,30.0]
[1617811314709,79.3487,1963.0,1961.0,38.2848]
[1617811315510,2.90695,1961.9,1961.7,2.90695]
[1617811315709,2.90695,1961.9,1961.7,1.9489]
[1617811317013,2.90695,1961.9,1961.0,32.0]
[1617811317213,2.90695,1961.9,1961.0,30.0]
[1617811317416,79.3487,1963.0,1961.5,2.90695]
[1617811318015,79.3487,1963.0,1961.5,35.82605]
[1617811318415,79.3487,1963.0,1961.5,32.9191]
[1617811318715,79.3487,1963.0,1961.5,2.9191]
[1617811319616,1.1,1964.1,1962.3,2.90695]
[1617811319917,1.1,1964.1,1962.3,4.86825]
[1617811320126,1.1,1964.1,1962.3,1.9613]
[1617811321065,1.1,1964.1,1961.5,2.9191]
[1617811321066,64.069,1962.8,1961.5,2.9191]
[1617811321255,64.069,1962.8,1958.5,71.1597]
[1617811321256,95.9495,1962.8,1958.5,71.1597]
[1617811321425,2.90695,1960.8,1960.2,14.2515]
[1617811321919,2.90695,1960.8,1960.3,6.19]
[1617811322119,2.90695,1960.8,1960.4,30.0]
[1617811322637,2.90695,1960.8,1958.2,64.7778]
[1617811322638,2.90695,1960.8,1958.3,13.788]
[1617811323121,2.90695,1960.8,1960.2,30.0]
[1617811323432,2.90695,1960.5,1959.5,2.90695]
[1617811323632,2.90695,1960.5,1958.3,13.788]
[1617811323634,5.85255,1960.5,1958.3,13.788]
[1617811323919,5.85255,1960.5,1959.2,30.0]
[1617811324450,5.85255,1960.5,1959.3,2.0]
[1617811324639,5.85255,1960.5,1959.4,30.0]
[1617811324818,5.85255,1960.5,1959.5,2.0]
[1617811325036,5.85255,1960.5,1959.6,30.0]
[1617811325520,2.90695,1960.2,1959.6,32.90695]
[1617811325921,2.90695,1960.2,1960.1,43.2789]
[1617811326522,2.90695,1960.2,1960.1,13.2789]
[1617811327726,2.90695,1960.2,1958.9,2.90695]
[1617811327924,3.92805,1960.2,1959.0,30.0]
[1617811328323,3.92805,1960.2,1959.0,36.36]
[1617811328730,2.90695,1960.2,1959.0,38.695]
[1617811329124,2.90695,1960.2,1959.1,2.0]
[1617811329458,2.90695,1960.2,1959.2,30.0]
[1617811329657,2.90695,1961.1,1959.2,36.13]
[1617811330069,2.90695,1961.1,1954.1,98.1474]
[1617811330226,5.29075,1961.1,1958.7,30.0]
[1617811330434,84.4113,1960.5,1958.7,30.0]
[1617811330749,88.4917,1960.5,1958.8,2.0]
[1617811330927,88.4917,1960.5,1958.9,30.0]
[1617811331328,88.4917,1960.5,1959.0,8.12]
[1617811331541,88.4917,1960.5,1959.4,2.90695]
[1617811331735,4.0804,1960.5,1959.4,2.90695]
[1617811331929,3.069,1960.5,1958.6,30.0]
[1617811332431,2.0,1960.4,1958.6,30.0]
[1617811332729,2.0,1960.4,1958.1,30.0]
[1617811332929,3.0174,1960.4,1957.0,58.9278]
[1617811333229,85.8134,1959.1,1956.9,2.0]
[1617811333430,88.3883,1959.1,1957.1,13.0251]
[1617811333629,88.3883,1959.1,1958.0,2.90695]
[1617811333929,88.3883,1959.1,1957.2,38.37]
[1617811334729,89.395,1959.1,1957.2,36.37]
[1617811334929,89.395,1959.1,1957.4,30.0]
[1617811335129,89.395,1959.1,1957.6,30.0]
[1617811335330,89.395,1959.1,1957.6,36.23]
[1617811335531,89.395,1959.1,1957.7,2.90695]
[1617811335733,89.395,1959.1,1957.8,30.0]
[1617811335934,86.8201,1959.1,1957.8,38.38]
[1617811336233,1.0067,1959.1,1957.8,38.38]
[1617811336433,58.0514,1959.8,1957.8,38.38]
[1617811336632,58.0514,1959.8,1957.8,36.38]
[1617811337434,58.0514,1959.8,1957.9,32.0]
[1617811337634,58.0514,1959.8,1958.1,30.0]
[1617811337836,58.0514,1959.8,1958.1,2.0]
[1617811338136,58.0514,1959.8,1958.2,36.39]
[1617811338336,58.0514,1959.8,1958.3,32.0]
[1617811338537,58.0514,1959.8,1958.4,6.16]
[1617811338835,58.0514,1959.8,1958.6,30.0]
[1617811339036,58.0514,1959.8,1958.7,32.0]
[1617811339536,58.0514,1959.8,1958.9,29.8653]
[1617811339839,58.0514,1959.8,1958.9,31.8653]
[1617811340353,58.0514,1959.8,1959.1,29.8653]
[1617811340537,58.0514,1959.8,1959.1,32.947]
[1617811340779,2.90695,1960.5,1959.1,32.947]
[1617811340938,2.90695,1960.5,1959.3,29.8653]
[1617811341643,62.8827,1961.1,1959.3,29.8653]
[1617811341644,2.90695,1960.2,1959.5,2.90695]
[1617811341847,2.90695,1960.2,1959.6,29.8653]
[1617811342043,2.90695,1960.2,1959.6,36.2753]
[1617811342444,2.90695,1960.2,1959.7,2.0]
[1617811342644,2.80865,1960.2,1959.8,29.8653]
[1617811342844,62.8827,1961.1,1959.9,31.8653]
[1617811343043,62.8827,1961.1,1960.0,6.4]
[1617811343442,62.8827,1961.1,1960.0,36.2653]
[1617811343743,1.1,1962.0,1960.3,2.90695]
[1617811343953,1.0226,1962.2,1960.3,2.90695]
[1617811343954,73.5387,1962.2,1960.4,29.8653]
[1617811344144,73.5387,1962.2,1960.4,38.2653]
[1617811344644,73.5387,1962.2,1960.4,31.8653]
[1617811344844,73.5387,1962.2,1960.4,2.0]
[1617811345149,73.5387,1962.2,1960.3,2.6294]
[1617811345150,30.0,1962.1,1960.3,2.6294]
[1617811345544,1.1,1962.1,1960.3,2.6294]
[1617811345944,3.1,1962.1,1960.3,2.6294]
[1617811346344,1.1,1962.1,1960.3,2.6294]
[1617811347245,1.1,1962.1,1960.3,32.6294]
[1617811347645,31.1,1962.1,1960.3,2.6294]
[1617811347849,2.0,1962.0,1960.3,2.6294]
[1617811348047,1.1,1962.1,1960.0,1.437]
[1617811348447,3.1,1962.1,1959.9,2.4283]
[1617811348649,30.0,1962.0,1959.6,30.0]
[1617811348849,30.0,1961.8,1959.5,1.8933]
[1617811349154,73.3847,1961.2,1958.9,2.0]
[1617811349348,76.4523,1961.2,1959.2,2.0]
[1617811349649,2.057,1961.2,1960.1,2.90695]
[1617811349849,2.057,1961.2,1960.1,5.76825]
[1617811350052,1.1,1961.8,1960.1,2.8613]
[1617811350550,30.0,1962.0,1960.1,2.8613]
[1617811350752,33.1,1962.0,1960.1,2.8613]
[1617811350950,31.1,1962.0,1960.1,2.8613]
[1617811352753,33.1,1962.0,1959.6,2.5249]
[1617811352954,35.0032,1962.0,1959.2,2.2135]
[1617811353664,35.0032,1962.0,1959.2,32.2135]
[1617811354260,33.1,1962.0,1959.2,32.2135]
[1617811354453,33.1,1962.0,1959.4,30.0]
[1617811354655,33.1,1962.0,1959.6,30.0]
[1617811354854,33.1,1962.0,1959.7,32.0]
[1617811355068,3.1,1962.0,1959.7,32.0]
[1617811355256,1.1,1962.0,1959.9,30.0]
[1617811355555,77.4138,1962.2,1959.9,30.0]
[1617811355755,2.90695,1961.0,1960.3,30.0]
[1617811355956,2.90695,1961.0,1960.4,2.0]
[1617811356155,2.90695,1961.0,1960.5,30.0]
[1617811356356,2.90695,1961.0,1960.5,36.4]
[1617811356555,2.90695,1961.0,1960.5,6.4]
[1617811356756,2.90695,1961.0,1960.3,1.8717]
[1617811357660,1.0088,1961.6,1960.3,1.8717]
[1617811358157,1.0088,1961.6,1960.4,6.36]
[1617811358557,1.0088,1961.6,1960.4,30.0]
[1617811359057,1.0088,1961.6,1960.3,1.8717]
[1617811360889,1.0088,1961.6,1960.5,30.0]
[1617811361091,1.0088,1961.6,1960.5,32.2449]
[1617811361288,1.1,1962.0,1960.7,30.0]
[1617811361460,1.0226,1962.2,1960.7,30.0]
[1617811361660,2.90695,1960.9,1960.7,30.0]
[1617811361904,2.1226,1962.2,1960.9,30.0]
[1617811361905,1.0226,1962.2,1960.9,30.0]
[1617811362081,1.0241,1963.0,1960.9,32.0614]
[1617811362297,1.0241,1963.0,1961.1,30.0]
[1617811362460,81.7005,1963.4,1961.3,30.0]
[1617811362660,81.7005,1963.4,1961.5,30.0]
[1617811362872,81.7005,1963.4,1961.5,32.0]
[1617811363061,81.7005,1963.4,1961.5,35.36]
[1617811363664,2.90695,1962.5,1961.5,35.36]
[1617811364180,1.1,1963.8,1961.5,35.36]
[1617811364487,1.0162,1963.6,1961.5,35.36]
[1617811364661,81.96,1964.5,1961.5,35.36]
[1617811365216,83.06,1964.5,1961.5,35.36]
[1617811365763,2.90695,1963.8,1961.5,35.36]
[1617811366680,1.571,1963.5,1961.5,35.36]
[1617811366880,2.90695,1963.8,1961.5,35.36]
[1617811367662,2.90695,1964.1,1961.5,35.36]
[1617811368961,84.531,1964.5,1961.5,35.36]
[1617811369566,1.7146,1964.5,1961.5,35.36]
[1617811369770,1.7146,1964.5,1962.2,79.242]
[1617811369968,2.90695,1964.7,1962.4,30.0]
[1617811370168,2.90695,1964.7,1962.6,30.0]
[1617811370371,2.90695,1964.7,1962.8,30.0]
[1617811370668,3.597,1965.4,1963.0,30.0]
[1617811370669,2.571,1965.4,1963.0,30.0]
[1617811370870,2.571,1965.4,1963.2,30.0]
[1617811371168,2.571,1965.4,1963.4,30.0]
[1617811371372,2.571,1965.4,1963.6,30.0]
[1617811371571,2.571,1965.4,1963.8,30.0]
[1617811371783,5.47795,1965.4,1964.0,30.0]
[1617811371976,5.47795,1965.4,1964.2,30.0]
[1617811372271,2.571,1965.4,1964.4,30.0]
[1617811372470,71.9028,1967.3,1964.6,30.0]
[1617811372670,3.6028,1966.4,1964.6,32.1085]
[1617811372871,3.6028,1966.4,1964.6,38.2185]
[1617811373371,2.571,1966.4,1964.6,38.2185]
[1617811373771,2.90695,1965.7,1964.6,38.2185]
[1617811374473,3.92315,1965.7,1964.6,38.2185]
[1617811374672,2.90695,1965.7,1964.6,36.11]
[1617811375321,5.85195,1965.7,1964.6,36.11]
[1617811375772,2.90695,1965.1,1964.6,36.11]
[1617811376202,5.04445,1965.1,1964.6,36.11]
[1617811376685,2.1375,1965.1,1964.6,36.11]
[1617811377290,2.571,1966.4,1964.6,36.11]
[1617811377489,2.571,1966.4,1964.6,39.0796]
[1617811377880,2.90695,1965.6,1964.6,39.0796]
[1617811378292,2.571,1966.4,1964.6,39.0796]
[1617811379095,2.571,1966.4,1964.6,41.0796]
[1617811379478,2.571,1966.4,1964.6,39.0796]
[1617811379879,2.90695,1966.1,1964.6,39.0796]
[1617811380079,2.571,1966.4,1964.6,39.0796]
[1617811381180,2.571,1966.4,1965.2,30.0]
[1617811381380,2.571,1966.4,1965.2,38.9642]
[1617811381882,5.098,1967.3,1965.2,38.9642]
[1617811382105,2.90695,1967.4,1965.4,30.0]
[1617811382283,2.90695,1967.4,1965.6,30.0]
[1617811382489,2.90695,1967.4,1965.8,30.0]
[1617811382684,3.93135,1967.4,1965.8,32.0]
[1617811382887,3.93135,1967.4,1965.8,38.39]
[1617811383183,2.90695,1967.4,1965.8,38.39]
[1617811383885,2.90695,1966.9,1965.8,38.39]
[1617811384686,2.571,1968.3,1965.8,38.39]
[1617811385891,2.90695,1967.6,1965.8,38.39]
[1617811386210,2.90695,1967.6,1966.2,68.8157]
[1617811386428,2.90695,1967.6,1966.3,30.0]
[1617811386602,2.571,1968.3,1966.3,38.32]
[1617811387890,2.90695,1968.6,1966.3,38.32]
[1617811388090,2.90695,1968.6,1967.4,30.0]
[1617811388391,2.90695,1968.6,1967.4,39.3481]
[1617811391600,2.90695,1968.6,1967.4,41.3481]
[1617811392302,2.571,1969.7,1967.4,41.3481]
[1617811393902,2.90695,1969.7,1967.4,41.3481]
[1617811394402,13.5248,1971.1,1967.4,41.3481]
[1617811395905,2.90695,1970.2,1967.4,41.3481]
[1617811396707,5.00725,1970.2,1967.4,41.3481]
[1617811397312,5.00725,1970.2,1967.4,39.3481]
[1617811397511,5.00725,1970.2,1967.6,30.0]
[1617811397714,5.00725,1970.2,1967.6,36.28]
[1617811397912,2.1003,1970.2,1967.6,39.2097]
[1617811398315,3.3552,1970.6,1967.6,39.2097]
[1617811398316,2.3423,1970.6,1967.6,39.2097]
[1617811398636,13.5248,1971.1,1967.8,30.0]
[1617811398828,13.5248,1971.1,1968.0,30.0]
[1617811399027,13.5248,1971.1,1968.2,30.0]
[1617811399315,2.571,1971.2,1969.0,66.2502]
[1617811399615,2.571,1971.2,1969.1,30.0]
[1617811399819,2.90695,1970.9,1969.1,35.94]
[1617811400592,2.90695,1970.9,1969.1,5.94]
[1617811400779,5.07095,1970.9,1968.0,83.7974]
[1617811401463,5.07095,1970.9,1968.1,36.31]
[1617811401821,2.90695,1969.8,1968.1,36.31]
[1617811402119,2.1659,1969.8,1968.1,36.31]
[1617811402519,2.1659,1969.8,1968.2,2.0]
[1617811402719,2.1659,1969.8,1968.3,30.0]
[1617811402919,2.1659,1969.8,1968.5,30.0]
[1617811403222,4.1002,1971.7,1968.7,30.0]
[1617811403419,4.1002,1971.7,1968.7,38.7728]
[1617811403721,1.1,1971.7,1968.7,38.7728]
[1617811404022,2.90695,1970.9,1970.8,2.90695]
[1617811404219,2.90695,1970.9,1970.8,5.93815]
[1617811406019,2.90695,1971.1,1970.8,3.0312]
[1617811406825,2.571,1971.2,1970.8,3.0312]
[1617811407722,2.571,1971.2,1970.9,6.21]
[1617811407923,13.733,1972.6,1971.1,2.90695]
[1617811407924,2.90695,1971.6,1971.1,2.90695]
[1617811409727,1.017,1972.6,1971.1,2.90695]
[1617811409927,2.90695,1972.2,1971.5,2.90695]
[1617811410131,2.90695,1972.2,1971.5,5.86175]
[1617811410327,2.90695,1972.2,1971.6,6.33]
[1617811410531,2.90695,1972.2,1971.5,5.86175]
[1617811411030,2.571,1972.9,1971.5,5.86175]
[1617811411329,2.571,1972.9,1971.6,6.11]
[1617811411930,3.5882,1972.9,1972.6,2.90695]
[1617811412129,3.5882,1972.9,1972.6,4.93135]
[1617811412734,3.5882,1972.9,1972.6,4.18875]
[1617811414083,3.5882,1972.9,1972.8,2.90695]
[1617811414292,2.571,1972.9,1972.8,2.90695]
[1617811416938,14.7294,1973.5,1972.8,2.90695]
[1617811417840,13.7309,1973.5,1972.6,2.0244]
[1617811418040,1.0249,1974.1,1972.2,3.062]
[1617811418237,1.0249,1974.1,1972.1,84.1369]
[1617811418439,1.0249,1974.1,1973.5,2.90695]
[1617811418738,1.0249,1974.1,1973.5,5.80175]
[1617811419939,1.0249,1974.1,1972.7,2.9648]
[1617811420145,4.1132,1974.1,1972.1,84.1369]
[1617811420344,4.1132,1974.1,1972.4,2.90695]
[1617811420547,63.4789,1973.5,1972.4,2.90695]
[1617811420742,66.5994,1973.5,1972.4,2.16435]
[1617811420942,66.6994,1973.5,1972.4,1.68075]
[1617811421143,3.1205,1973.5,1972.4,1.22625]
[1617811422545,3.91125,1972.5,1972.4,1.22625]
[1617811422748,2.8987,1973.5,1972.4,1.22625]
[1617811423645,2.0,1973.4,1972.4,1.22625]
[1617811424547,32.90695,1972.5,1968.0,13.672]
[1617811424859,32.90695,1972.5,1961.1,6.29088961]
[1617811424860,59.4009,1972.3,1969.8,30.0]
[1617811425089,59.4009,1972.3,1969.0,13.639]
[1617811425091,2.0,1972.2,1969.1,2.0]
[1617811425279,2.0,1972.2,1969.0,13.639]
[1617811425452,30.0,1972.1,1968.9,67.3283]
[1617811425655,30.0,1972.1,1969.0,30.0]
[1617811425656,2.0,1972.0,1969.0,30.0]
[1617811425852,30.0,1971.9,1969.1,6.26]
[1617811426053,2.0,1971.9,1969.2,30.0]
[1617811426452,2.0,1971.9,1971.0,2.90695]
[1617811426957,1.0078,1972.3,1971.0,2.90695]
[1617811427153,13.6883,1972.4,1971.0,1.90675]
[1617811428153,15.6883,1972.4,1971.0,1.90675]
[1617811428654,15.6883,1972.4,1971.9,2.90695]
[1617811428853,15.6883,1972.4,1971.9,4.98935]
[1617811429353,15.6883,1972.4,1971.9,4.83735]
[1617811429854,13.6883,1972.4,1971.9,4.83735]
[1617811430459,2.90695,1972.0,1971.9,4.83735]
[1617811430657,3.91505,1972.0,1971.9,2.75495]
[1617811431157,3.91505,1972.0,1970.8,1.9045]
[1617811431662,2.90695,1972.0,1970.8,1.9045]
[1617811431957,2.90695,1972.0,1970.9,6.23]
[1617811432157,2.90695,1972.0,1971.0,30.0]
[1617811432666,2.90695,1972.2,1971.1,6.13]
[1617811432899,2.90695,1972.2,1970.4,60.5661]
[1617811433060,5.86385,1972.2,1970.4,60.5661]
[1617811433559,2.0,1972.1,1970.5,6.16]
[1617811433760,5.86385,1972.2,1970.5,6.16]
[1617811433960,35.86385,1972.2,1968.8,3.011]
[1617811434297,35.86385,1972.2,1968.8,2.0096]
[1617811434298,64.7508,1971.6,1968.8,2.0096]
[1617811434521,67.5932,1971.6,1970.6,2.90695]
[1617811434862,67.5932,1971.6,1970.6,1.90075]
[1617811435259,2.8424,1971.6,1970.6,1.90075]
[1617811435585,3.8715,1971.6,1970.6,1.90075]
[1617811435792,1.0291,1971.6,1970.6,1.90075]
[1617811436258,1.0173,1972.3,1970.6,4.82305]
[1617811436463,1.0173,1972.3,1971.8,2.90695]
[1617811436660,1.0173,1972.3,1971.8,1.8878]
[1617811437768,1.0173,1972.3,1970.0,32.2348]
[1617811438276,15.6883,1972.4,1970.1,6.37]
[1617811438463,15.6883,1972.4,1970.2,30.0]
[1617811439063,15.6883,1972.4,1970.3,38.16]
[1617811440265,13.6883,1972.4,1970.3,38.16]
[1617811440667,2.90695,1972.3,1970.3,38.16]
[1617811440865,2.90695,1972.3,1970.3,32.0]
[1617811441365,2.90695,1972.3,1970.4,6.22]